[Event "Titled Tuesday Blitz March 01 Early 2022"]
[White "Mohammadian, Mohammad"]
[Black "Prieto Aranguren, Alain"]
[WhiteFideId "12566055"]
[BlackFideId "2268906"]
[WhiteElo "1543"]
[BlackElo "2235"]
[Result "0-1"]
[Round "07"]
[TimeControl "180+1"]
[Date "2022.03.01"]
[WhiteClock "0:00:03"]
[BlackClock "0:00:53"]

1. e4 {[%clk 0:03:00]}  c6 {[%clk 0:02:33]} 2. d4 {[%clk 0:02:58]}  d5 {[%clk 0:02:33]} 3. Nd2 {[%clk 0:02:57]}  dxe4 {[%clk 0:02:33]} 4. Nxe4 {[%clk 0:02:57]}  Nf6 {[%clk 0:02:34]} 5. Nxf6+ {[%clk 0:02:57]}  gxf6 {[%clk 0:02:35]} 6. Nf3 {[%clk 0:02:57]}  Bg4 {[%clk 0:02:35]} 7. Be2 {[%clk 0:02:57]}  e6 {[%clk 0:02:35]} 8. O-O {[%clk 0:02:57]}  Bd6 {[%clk 0:02:35]} 9. c4 {[%clk 0:02:56]}  Qc7 {[%clk 0:02:35]} 10. h3 {[%clk 0:02:55]}  Bh5 {[%clk 0:02:35]} 11. Be3 {[%clk 0:02:51]}  Rg8 {[%clk 0:02:34]} 12. c5 {[%clk 0:02:43]}  Be7 {[%clk 0:02:34]} 13. Qc2 {[%clk 0:02:39]}  Bg6 {[%clk 0:02:33]} 14. Qd2 {[%clk 0:02:38]}  Nd7 {[%clk 0:02:33]} 15. Bf4 {[%clk 0:02:36]}  Qc8 {[%clk 0:02:29]} 16. Bg3 {[%clk 0:02:31]}  f5 {[%clk 0:02:29]} 17. Qh6 {[%clk 0:02:23]}  Nf6 {[%clk 0:02:29]} 18. Be5 {[%clk 0:02:15]}  Ne4 {[%clk 0:02:25]} 19. Rfe1 {[%clk 0:02:02]}  Qd8 {[%clk 0:02:25]} 20. Rad1 {[%clk 0:02:00]}  a6 {[%clk 0:02:11]} 21. Qc1 {[%clk 0:01:56]}  Qd5 {[%clk 0:02:02]} 22. Bc4 {[%clk 0:01:52]}  Qd8 {[%clk 0:02:01]} 23. Be2 {[%clk 0:01:46]}  Bh5 {[%clk 0:02:00]} 24. Bg3 {[%clk 0:01:39]}  Nxg3 {[%clk 0:01:57]} 25. fxg3 {[%clk 0:01:39]}  Rxg3 {[%clk 0:01:56]} 26. Qf4 {[%clk 0:01:34]}  Qb8 {[%clk 0:01:48]} 27. Qxb8+ {[%clk 0:01:32]}  Rxb8 {[%clk 0:01:48]} 28. Ne5 {[%clk 0:01:31]}  Bxe2 {[%clk 0:01:46]} 29. Rxe2 {[%clk 0:01:30]}  Rd8 {[%clk 0:01:46]} 30. Red2 {[%clk 0:01:29]}  Rd5 {[%clk 0:01:36]} 31. Nc4 {[%clk 0:01:26]}  f4 {[%clk 0:01:26]} 32. Nb6 {[%clk 0:01:25]}  Rxd4 {[%clk 0:01:20]} 33. Rxd4 {[%clk 0:01:22]}  Bxc5 {[%clk 0:01:20]} 34. b4 {[%clk 0:01:15]}  Bxb6 {[%clk 0:01:20]} 35. Kh2 {[%clk 0:01:03]}  Bxd4 {[%clk 0:01:19]} 36. Rxd4 {[%clk 0:01:03]}  e5 {[%clk 0:01:18]} 37. Re4 {[%clk 0:01:02]}  Re3 {[%clk 0:01:13]} 38. Rxe3 {[%clk 0:01:00]}  fxe3 {[%clk 0:01:12]} 39. Kg3 {[%clk 0:00:59]}  f5 {[%clk 0:01:12]} 40. Kf3 {[%clk 0:00:59]}  f4 {[%clk 0:01:12]} 41. g3 {[%clk 0:00:59]}  Ke7 {[%clk 0:01:12]} 42. g4 {[%clk 0:00:53]}  Kf6 {[%clk 0:01:12]} 43. h4 {[%clk 0:00:53]}  b6 {[%clk 0:01:12]} 44. a4 {[%clk 0:00:52]}  c5 {[%clk 0:01:12]} 45. bxc5 {[%clk 0:00:26]}  bxc5 {[%clk 0:01:12]} 46. Ke2 {[%clk 0:00:26]}  c4 {[%clk 0:01:11]} 47. Kf3 {[%clk 0:00:25]}  c3 {[%clk 0:01:11]} 48. Ke2 {[%clk 0:00:25]}  e4 {[%clk 0:01:11]} 49. a5 {[%clk 0:00:24]}  c2 {[%clk 0:01:08]} 50. g5+ {[%clk 0:00:19]}  Kf5 {[%clk 0:01:08]} 51. h5 {[%clk 0:00:18]}  Kxg5 {[%clk 0:01:07]} 52. h6 {[%clk 0:00:18]}  f3+ {[%clk 0:01:04]} 53. Ke1 {[%clk 0:00:03]}  c1=Q# {[%clk 0:00:53]} 0-1


[Site "https://www.chess.com"]

[Event "Titled Tuesday Blitz March 01 Early 2022"]
[White "Moskalenko, Alexander"]
[Black "Pinheiro, Iung Alicio de O."]
[WhiteFideId "4155351"]
[BlackFideId "2104350"]
[WhiteElo "2515"]
[BlackElo "2560"]
[Result "1-0"]
[Round "07"]
[TimeControl "180+1"]
[Date "2022.03.01"]
[WhiteClock "0:01:27"]
[BlackClock "0:00:09"]

1. d4 {[%clk 0:03:00]}  Nf6 {[%clk 0:02:59]} 2. Nf3 {[%clk 0:03:00]}  g6 {[%clk 0:02:59]} 3. Bg5 {[%clk 0:02:59]}  Bg7 {[%clk 0:02:59]} 4. Nbd2 {[%clk 0:02:59]}  d5 {[%clk 0:02:59]} 5. e3 {[%clk 0:02:57]}  O-O {[%clk 0:02:57]} 6. c3 {[%clk 0:02:57]}  Nfd7 {[%clk 0:02:55]} 7. b4 {[%clk 0:02:52]}  Re8 {[%clk 0:02:43]} 8. Be2 {[%clk 0:02:50]}  c6 {[%clk 0:02:28]} 9. O-O {[%clk 0:02:46]}  Qc7 {[%clk 0:02:24]} 10. Bh4 {[%clk 0:02:45]}  a5 {[%clk 0:02:13]} 11. Bg3 {[%clk 0:02:43]}  e5 {[%clk 0:02:04]} 12. b5 {[%clk 0:02:43]}  Qd8 {[%clk 0:02:01]} 13. Nxe5 {[%clk 0:02:42]}  Nxe5 {[%clk 0:02:01]} 14. Bxe5 {[%clk 0:02:43]}  Bxe5 {[%clk 0:02:00]} 15. dxe5 {[%clk 0:02:44]}  Rxe5 {[%clk 0:02:01]} 16. c4 {[%clk 0:02:44]}  cxb5 {[%clk 0:01:53]} 17. Nf3 {[%clk 0:02:44]}  Re8 {[%clk 0:01:49]} 18. cxb5 {[%clk 0:02:44]}  Be6 {[%clk 0:01:42]} 19. Rc1 {[%clk 0:02:39]}  Nd7 {[%clk 0:01:42]} 20. Nd4 {[%clk 0:02:34]}  Rc8 {[%clk 0:01:34]} 21. Rxc8 {[%clk 0:02:25]}  Qxc8 {[%clk 0:01:35]} 22. Qd2 {[%clk 0:02:26]}  Qd8 {[%clk 0:01:33]} 23. Rc1 {[%clk 0:02:25]}  Nf6 {[%clk 0:01:29]} 24. Bf3 {[%clk 0:02:19]}  Qb6 {[%clk 0:01:24]} 25. a4 {[%clk 0:02:12]}  Rc8 {[%clk 0:01:20]} 26. Rxc8+ {[%clk 0:02:12]}  Bxc8 {[%clk 0:01:21]} 27. Nb3 {[%clk 0:02:12]}  Qc7 {[%clk 0:01:06]} 28. Qxa5 {[%clk 0:01:56]}  Qc2 {[%clk 0:00:59]} 29. h3 {[%clk 0:01:54]}  Qb1+ {[%clk 0:00:31]} 30. Kh2 {[%clk 0:01:52]}  Kg7 {[%clk 0:00:31]} 31. Qc3 {[%clk 0:01:46]}  Qa2 {[%clk 0:00:24]} 32. Qxc8 {[%clk 0:01:33]}  Qxb3 {[%clk 0:00:24]} 33. Qxb7 {[%clk 0:01:33]}  Qxa4 {[%clk 0:00:24]} 34. b6 {[%clk 0:01:27]}  Qa2 {[%clk 0:00:14]} 35. Qc7 {[%clk 0:01:27]}  Qxf2 {[%clk 0:00:09]} 36. b7 {[%clk 0:01:27]} 1-0


[Site "https://www.chess.com"]

[Event "Titled Tuesday Blitz March 01 Early 2022"]
[White "Nasyrova, Ekaterina"]
[Black "Carlsson, Ludvig"]
[WhiteFideId "44157797"]
[BlackFideId "1727010"]
[WhiteElo "2068"]
[BlackElo "2178"]
[Result "0-1"]
[Round "07"]
[TimeControl "180+1"]
[Date "2022.03.01"]
[WhiteClock "0:00:02"]
[BlackClock "0:00:19"]

1. d4 {[%clk 0:02:59]}  d5 {[%clk 0:02:58]} 2. c4 {[%clk 0:02:59]}  e5 {[%clk 0:02:58]} 3. dxe5 {[%clk 0:02:59]}  Ne7 {[%clk 0:02:57]} 4. Nf3 {[%clk 0:02:58]}  Nbc6 {[%clk 0:02:57]} 5. g3 {[%clk 0:02:56]}  dxc4 {[%clk 0:02:54]} 6. Qxd8+ {[%clk 0:02:54]}  Kxd8 {[%clk 0:02:53]} 7. Na3 {[%clk 0:02:46]}  Be6 {[%clk 0:02:49]} 8. Bg5 {[%clk 0:02:38]}  Ke8 {[%clk 0:02:46]} 9. Bg2 {[%clk 0:02:18]}  a6 {[%clk 0:02:35]} 10. Rc1 {[%clk 0:01:57]}  c3 {[%clk 0:02:19]} 11. Rxc3 {[%clk 0:01:48]}  Ng6 {[%clk 0:02:18]} 12. O-O {[%clk 0:01:46]}  Bxa2 {[%clk 0:02:13]} 13. Nc4 {[%clk 0:01:18]}  h6 {[%clk 0:02:07]} 14. Be3 {[%clk 0:01:13]}  Bb4 {[%clk 0:02:03]} 15. Rcc1 {[%clk 0:01:12]}  Rc8 {[%clk 0:01:34]} 16. h4 {[%clk 0:00:45]}  Bxc4 {[%clk 0:01:24]} 17. Rxc4 {[%clk 0:00:45]}  a5 {[%clk 0:01:21]} 18. h5 {[%clk 0:00:42]}  Nge7 {[%clk 0:01:15]} 19. Nd4 {[%clk 0:00:27]}  Nxe5 {[%clk 0:01:11]} 20. Rc2 {[%clk 0:00:26]}  c6 {[%clk 0:00:58]} 21. Bf4 {[%clk 0:00:22]}  Nd7 {[%clk 0:00:53]} 22. Bh3 {[%clk 0:00:19]}  Rd8 {[%clk 0:00:51]} 23. Bc7 {[%clk 0:00:14]}  Ra8 {[%clk 0:00:49]} 24. Rd1 {[%clk 0:00:14]}  Nd5 {[%clk 0:00:48]} 25. Bf4 {[%clk 0:00:11]}  Nxf4 {[%clk 0:00:47]} 26. gxf4 {[%clk 0:00:12]}  Nf6 {[%clk 0:00:45]} 27. Nf5 {[%clk 0:00:08]}  Nxh5 {[%clk 0:00:39]} 28. e3 {[%clk 0:00:04]}  a4 {[%clk 0:00:32]} 29. Bg4 {[%clk 0:00:04]}  Nf6 {[%clk 0:00:32]} 30. Bf3 {[%clk 0:00:04]}  g6 {[%clk 0:00:31]} 31. Nd4 {[%clk 0:00:04]}  Kf8 {[%clk 0:00:24]} 32. Rc4 {[%clk 0:00:04]}  Be7 {[%clk 0:00:23]} 33. Ra1 {[%clk 0:00:04]}  a3 {[%clk 0:00:21]} 34. bxa3 {[%clk 0:00:04]}  Rxa3 {[%clk 0:00:21]} 35. Rb1 {[%clk 0:00:05]}  Ra7 {[%clk 0:00:19]} 36. Rb6 {[%clk 0:00:05]}  Kg7 {[%clk 0:00:19]} 37. Rc2 {[%clk 0:00:05]}  Rd8 {[%clk 0:00:17]} 38. Rcb2 {[%clk 0:00:04]}  Bc5 {[%clk 0:00:17]} 39. Rxb7 {[%clk 0:00:04]}  Rxb7 {[%clk 0:00:18]} 40. Rxb7 {[%clk 0:00:05]}  Bxd4 {[%clk 0:00:18]} 41. exd4 {[%clk 0:00:05]}  Rxd4 {[%clk 0:00:19]} 42. Bxc6 {[%clk 0:00:06]}  Rxf4 {[%clk 0:00:19]} 43. Kg2 {[%clk 0:00:06]}  h5 {[%clk 0:00:19]} 44. Kg3 {[%clk 0:00:06]}  Rg4+ {[%clk 0:00:19]} 45. Kf3 {[%clk 0:00:06]}  Rg5 {[%clk 0:00:20]} 46. Ba4 {[%clk 0:00:05]}  Rf5+ {[%clk 0:00:20]} 47. Kg2 {[%clk 0:00:05]}  Ne4 {[%clk 0:00:20]} 48. f3 {[%clk 0:00:05]}  Nc5 {[%clk 0:00:21]} 49. Ra7 {[%clk 0:00:04]}  Nxa4 {[%clk 0:00:20]} 50. Rxa4 {[%clk 0:00:05]}  Rf6 {[%clk 0:00:21]} 51. Kg3 {[%clk 0:00:05]}  Re6 {[%clk 0:00:22]} 52. Rb4 {[%clk 0:00:06]}  Rf6 {[%clk 0:00:23]} 53. Ra4 {[%clk 0:00:06]}  Rf5 {[%clk 0:00:23]} 54. Re4 {[%clk 0:00:06]}  Kh6 {[%clk 0:00:24]} 55. Rb4 {[%clk 0:00:07]}  g5 {[%clk 0:00:24]} 56. Rb6+ {[%clk 0:00:07]}  Kg7 {[%clk 0:00:24]} 57. Rb4 {[%clk 0:00:07]}  Kg6 {[%clk 0:00:24]} 58. Rb6+ {[%clk 0:00:07]}  f6 {[%clk 0:00:25]} 59. Rb4 {[%clk 0:00:07]}  h4+ {[%clk 0:00:25]} 60. Kg4 {[%clk 0:00:05]}  Rc5 {[%clk 0:00:24]} 61. Rb8 {[%clk 0:00:04]}  f5+ {[%clk 0:00:24]} 62. Kh3 {[%clk 0:00:04]}  Rc6 {[%clk 0:00:23]} 63. Rg8+ {[%clk 0:00:04]}  Kh5 {[%clk 0:00:24]} 64. Rh8+ {[%clk 0:00:04]}  Rh6 {[%clk 0:00:24]} 65. Re8 {[%clk 0:00:04]}  g4+ {[%clk 0:00:24]} 66. fxg4+ {[%clk 0:00:05]}  fxg4+ {[%clk 0:00:25]} 67. Kg2 {[%clk 0:00:05]}  Kg5 {[%clk 0:00:24]} 68. Re5+ {[%clk 0:00:05]}  Kf4 {[%clk 0:00:24]} 69. Ra5 {[%clk 0:00:06]}  h3+ {[%clk 0:00:24]} 70. Kh2 {[%clk 0:00:06]}  g3+ {[%clk 0:00:24]} 71. Kg1 {[%clk 0:00:07]}  Rf6 {[%clk 0:00:24]} 72. Ra4+ {[%clk 0:00:07]}  Kg5 {[%clk 0:00:24]} 73. Ra3 {[%clk 0:00:07]}  Kg4 {[%clk 0:00:25]} 74. Ra4+ {[%clk 0:00:07]}  Rf4 {[%clk 0:00:25]} 75. Ra8 {[%clk 0:00:06]}  g2 {[%clk 0:00:24]} 76. Rg8+ {[%clk 0:00:06]}  Kh4 {[%clk 0:00:22]} 77. Kh2 {[%clk 0:00:06]}  Rf1 {[%clk 0:00:19]} 78. Rh8+ {[%clk 0:00:05]}  Kg4 {[%clk 0:00:19]} 79. Rg8+ {[%clk 0:00:05]}  Kf3 {[%clk 0:00:19]} 80. Rg3+ {[%clk 0:00:05]}  Kf2 {[%clk 0:00:20]} 81. Kxh3 {[%clk 0:00:03]}  Rh1+ {[%clk 0:00:18]} 82. Kg4 {[%clk 0:00:02]}  g1=Q {[%clk 0:00:19]} 0-1


[Site "https://www.chess.com"]

[Event "Titled Tuesday Blitz March 01 Early 2022"]
[White "Nur-Mukhametova, Alisa"]
[Black "Lakshmi C"]
[WhiteFideId "54117739"]
[BlackFideId "25035347"]
[WhiteElo "2015"]
[BlackElo "1775"]
[Result "1-0"]
[Round "07"]
[TimeControl "180+1"]
[Date "2022.03.01"]
[WhiteClock "0:00:11"]
[BlackClock "0:00:01"]

1. d4 {[%clk 0:03:00]}  Nf6 {[%clk 0:02:55]} 2. c4 {[%clk 0:03:00]}  g6 {[%clk 0:02:55]} 3. Nc3 {[%clk 0:03:00]}  Bg7 {[%clk 0:02:56]} 4. e4 {[%clk 0:02:59]}  d6 {[%clk 0:02:57]} 5. Be2 {[%clk 0:02:59]}  O-O {[%clk 0:02:56]} 6. Be3 {[%clk 0:03:00]}  Nbd7 {[%clk 0:02:53]} 7. h4 {[%clk 0:02:49]}  e5 {[%clk 0:02:46]} 8. d5 {[%clk 0:02:45]}  Nc5 {[%clk 0:02:38]} 9. f3 {[%clk 0:02:19]}  a5 {[%clk 0:02:37]} 10. g4 {[%clk 0:02:11]}  c6 {[%clk 0:02:34]} 11. Nh3 {[%clk 0:02:07]}  cxd5 {[%clk 0:02:32]} 12. cxd5 {[%clk 0:02:05]}  Bd7 {[%clk 0:02:30]} 13. Nf2 {[%clk 0:01:53]}  b5 {[%clk 0:02:22]} 14. Nxb5 {[%clk 0:01:24]}  Bxb5 {[%clk 0:02:15]} 15. Bxb5 {[%clk 0:01:24]}  Rb8 {[%clk 0:02:15]} 16. a4 {[%clk 0:01:23]}  Nfd7 {[%clk 0:02:13]} 17. h5 {[%clk 0:01:19]}  f5 {[%clk 0:02:13]} 18. hxg6 {[%clk 0:01:18]}  hxg6 {[%clk 0:02:11]} 19. gxf5 {[%clk 0:01:18]}  gxf5 {[%clk 0:02:11]} 20. exf5 {[%clk 0:01:13]}  Rxf5 {[%clk 0:02:05]} 21. Qc2 {[%clk 0:01:13]}  Qf6 {[%clk 0:02:00]} 22. Ne4 {[%clk 0:00:54]}  Nxe4 {[%clk 0:01:49]} 23. fxe4 {[%clk 0:00:54]}  Rf3 {[%clk 0:01:48]} 24. Qe2 {[%clk 0:00:44]}  Nf8 {[%clk 0:01:36]} 25. O-O-O {[%clk 0:00:42]}  Ng6 {[%clk 0:01:29]} 26. Kb1 {[%clk 0:00:40]}  Rf8 {[%clk 0:01:18]} 27. Bd7 {[%clk 0:00:35]}  Kf7 {[%clk 0:01:13]} 28. Bg4 {[%clk 0:00:31]}  Rf4 {[%clk 0:01:10]} 29. Be6+ {[%clk 0:00:31]}  Ke7 {[%clk 0:01:09]} 30. Bxf4 {[%clk 0:00:30]}  exf4 {[%clk 0:01:07]} 31. Qb5 {[%clk 0:00:29]}  Rd8 {[%clk 0:01:02]} 32. Rh7 {[%clk 0:00:28]}  Kf8 {[%clk 0:01:00]} 33. Rg1 {[%clk 0:00:21]}  f3 {[%clk 0:00:56]} 34. Bf5 {[%clk 0:00:21]}  Ne5 {[%clk 0:00:20]} 35. Rgxg7 {[%clk 0:00:17]}  Qxg7 {[%clk 0:00:20]} 36. Rxg7 {[%clk 0:00:17]}  Kxg7 {[%clk 0:00:20]} 37. Qf1 {[%clk 0:00:17]}  Kf6 {[%clk 0:00:20]} 38. Qg1 {[%clk 0:00:17]}  Rh8 {[%clk 0:00:18]} 39. Qf2 {[%clk 0:00:16]}  Rh1+ {[%clk 0:00:17]} 40. Ka2 {[%clk 0:00:16]}  Kg5 {[%clk 0:00:16]} 41. Qg3+ {[%clk 0:00:15]}  Kf6 {[%clk 0:00:15]} 42. Bg4 {[%clk 0:00:14]}  Rf1 {[%clk 0:00:06]} 43. Qf4+ {[%clk 0:00:14]}  Ke7 {[%clk 0:00:05]} 44. Bh3 {[%clk 0:00:12]}  Rd1 {[%clk 0:00:02]} 45. Qh4+ {[%clk 0:00:12]}  Ke8 {[%clk 0:00:01]} 46. Be6 {[%clk 0:00:11]} 1-0


[Site "https://www.chess.com"]

[Event "Titled Tuesday Blitz March 01 Early 2022"]
[White "Odegov, Artem"]
[Black "Pischal, Yulia"]
[WhiteFideId "34183644"]
[BlackFideId "14102390"]
[WhiteElo "2277"]
[BlackElo "1931"]
[Result "1-0"]
[Round "07"]
[TimeControl "180+1"]
[Date "2022.03.01"]
[WhiteClock "0:01:19"]
[BlackClock "0:00:01"]

1. d4 {[%clk 0:03:00]}  f5 {[%clk 0:02:59]} 2. c4 {[%clk 0:03:01]}  Nf6 {[%clk 0:02:59]} 3. h3 {[%clk 0:03:02]}  d6 {[%clk 0:02:58]} 4. g4 {[%clk 0:03:03]}  fxg4 {[%clk 0:02:58]} 5. hxg4 {[%clk 0:03:04]}  Bxg4 {[%clk 0:02:57]} 6. Nc3 {[%clk 0:03:05]}  Qd7 {[%clk 0:02:52]} 7. Qc2 {[%clk 0:03:04]}  Nc6 {[%clk 0:02:52]} 8. e3 {[%clk 0:03:03]}  e5 {[%clk 0:02:49]} 9. dxe5 {[%clk 0:02:58]}  Nxe5 {[%clk 0:02:47]} 10. Bg2 {[%clk 0:02:56]}  Nc6 {[%clk 0:02:45]} 11. Nge2 {[%clk 0:02:54]}  O-O-O {[%clk 0:02:43]} 12. O-O {[%clk 0:02:53]}  Bh3 {[%clk 0:02:40]} 13. Nd5 {[%clk 0:02:49]}  Bxg2 {[%clk 0:02:37]} 14. Kxg2 {[%clk 0:02:49]}  Qg4+ {[%clk 0:02:28]} 15. Ng3 {[%clk 0:02:47]}  h5 {[%clk 0:02:17]} 16. Qe2 {[%clk 0:02:42]}  Qxe2 {[%clk 0:02:06]} 17. Nxe2 {[%clk 0:02:43]}  Ne5 {[%clk 0:02:05]} 18. b3 {[%clk 0:02:41]}  c6 {[%clk 0:01:59]} 19. Ndf4 {[%clk 0:02:41]}  Re8 {[%clk 0:01:52]} 20. Bb2 {[%clk 0:02:40]}  g5 {[%clk 0:01:50]} 21. Bxe5 {[%clk 0:02:40]}  dxe5 {[%clk 0:01:47]} 22. Ng6 {[%clk 0:02:39]}  Rg8 {[%clk 0:01:46]} 23. Nxf8 {[%clk 0:02:39]}  Rexf8 {[%clk 0:01:41]} 24. Rad1 {[%clk 0:02:40]}  Kc7 {[%clk 0:01:29]} 25. Ng3 {[%clk 0:02:37]}  h4 {[%clk 0:01:00]} 26. Nf5 {[%clk 0:02:35]}  Ne4 {[%clk 0:00:52]} 27. Nh6 {[%clk 0:02:32]}  Rh8 {[%clk 0:00:38]} 28. Ng4 {[%clk 0:02:31]}  Re8 {[%clk 0:00:30]} 29. Rd3 {[%clk 0:02:22]}  Nc5 {[%clk 0:00:27]} 30. Rd2 {[%clk 0:02:17]}  h3+ {[%clk 0:00:24]} 31. Kh2 {[%clk 0:02:16]}  Rh4 {[%clk 0:00:25]} 32. f3 {[%clk 0:02:13]}  e4 {[%clk 0:00:20]} 33. Nf6 {[%clk 0:02:13]}  Re6 {[%clk 0:00:20]} 34. fxe4 {[%clk 0:01:32]}  Nxe4 {[%clk 0:00:19]} 35. Nxe4 {[%clk 0:01:32]}  Rhxe4 {[%clk 0:00:18]} 36. Rf5 {[%clk 0:01:30]}  g4 {[%clk 0:00:17]} 37. Rf7+ {[%clk 0:01:30]}  Kb6 {[%clk 0:00:17]} 38. Rdd7 {[%clk 0:01:29]}  Rxe3 {[%clk 0:00:15]} 39. Rxb7+ {[%clk 0:01:29]}  Kc5 {[%clk 0:00:15]} 40. Rf5+ {[%clk 0:01:28]}  Kd4 {[%clk 0:00:15]} 41. Rf4+ {[%clk 0:01:29]}  R6e4 {[%clk 0:00:14]} 42. Rd7+ {[%clk 0:01:29]}  Kc3 {[%clk 0:00:14]} 43. Rxe4 {[%clk 0:01:27]}  Rxe4 {[%clk 0:00:14]} 44. Rd6 {[%clk 0:01:28]}  Re2+ {[%clk 0:00:13]} 45. Kg1 {[%clk 0:01:22]}  g3 {[%clk 0:00:13]} 46. Kf1 {[%clk 0:01:23]}  Rd2 {[%clk 0:00:11]} 47. Rg6 {[%clk 0:01:18]}  h2 {[%clk 0:00:07]} 48. Rxg3+ {[%clk 0:01:18]}  Kb2 {[%clk 0:00:05]} 49. Rh3 {[%clk 0:01:18]}  Kxa2 {[%clk 0:00:04]} 50. b4 {[%clk 0:01:19]}  Rd1+ {[%clk 0:00:02]} 51. Kg2 {[%clk 0:01:19]}  Rd2+ {[%clk 0:00:01]} 52. Kf3 {[%clk 0:01:18]}  Rd3+ {[%clk 0:00:01]} 53. Kg2 {[%clk 0:01:18]}  Rxh3 {[%clk 0:00:01]} 54. b5 {[%clk 0:01:19]} 1-0


[Site "https://www.chess.com"]

[Event "Titled Tuesday Blitz March 01 Early 2022"]
[White "Panesar Vedant"]
[Black "Shuvalov, Evgenij"]
[WhiteFideId "35033018"]
[BlackFideId "4187237"]
[WhiteElo "1971"]
[BlackElo "2119"]
[Result "1-0"]
[Round "07"]
[TimeControl "180+1"]
[Date "2022.03.01"]
[WhiteClock "0:00:19"]
[BlackClock "0:00:12"]

1. d4 {[%clk 0:03:00]}  Nf6 {[%clk 0:02:59]} 2. c4 {[%clk 0:03:01]}  g6 {[%clk 0:02:58]} 3. Nc3 {[%clk 0:03:02]}  d5 {[%clk 0:02:58]} 4. cxd5 {[%clk 0:03:02]}  Nxd5 {[%clk 0:02:59]} 5. e4 {[%clk 0:03:03]}  Nxc3 {[%clk 0:03:00]} 6. bxc3 {[%clk 0:03:04]}  Bg7 {[%clk 0:03:00]} 7. Nf3 {[%clk 0:03:05]}  c5 {[%clk 0:03:00]} 8. Bb5+ {[%clk 0:03:06]}  Nc6 {[%clk 0:02:59]} 9. d5 {[%clk 0:03:04]}  a6 {[%clk 0:02:58]} 10. Be2 {[%clk 0:02:55]}  Ne5 {[%clk 0:02:51]} 11. O-O {[%clk 0:02:51]}  Nxf3+ {[%clk 0:02:44]} 12. Bxf3 {[%clk 0:02:51]}  Bxc3 {[%clk 0:02:44]} 13. Bh6 {[%clk 0:02:52]}  e6 {[%clk 0:02:10]} 14. Rb1 {[%clk 0:02:28]}  Qh4 {[%clk 0:02:04]} 15. Be3 {[%clk 0:02:19]}  O-O {[%clk 0:02:01]} 16. Bxc5 {[%clk 0:02:19]}  Rd8 {[%clk 0:01:58]} 17. d6 {[%clk 0:01:59]}  Be5 {[%clk 0:01:50]} 18. g3 {[%clk 0:01:58]}  Qh6 {[%clk 0:01:30]} 19. Bg2 {[%clk 0:01:47]}  Qf8 {[%clk 0:01:26]} 20. Rb6 {[%clk 0:01:45]}  Bd7 {[%clk 0:01:14]} 21. f4 {[%clk 0:01:43]}  Bg7 {[%clk 0:01:13]} 22. e5 {[%clk 0:01:37]}  Rac8 {[%clk 0:01:09]} 23. Be3 {[%clk 0:01:34]}  Bc6 {[%clk 0:01:05]} 24. Bxc6 {[%clk 0:01:32]}  bxc6 {[%clk 0:01:04]} 25. Rxa6 {[%clk 0:01:27]}  c5 {[%clk 0:01:03]} 26. Qb3 {[%clk 0:01:19]}  Qe8 {[%clk 0:00:59]} 27. Rc1 {[%clk 0:01:15]}  f6 {[%clk 0:00:55]} 28. Qc3 {[%clk 0:00:58]}  fxe5 {[%clk 0:00:53]} 29. fxe5 {[%clk 0:00:58]}  Qb5 {[%clk 0:00:50]} 30. Ra7 {[%clk 0:00:58]}  c4 {[%clk 0:00:44]} 31. Bd4 {[%clk 0:00:48]}  Rc5 {[%clk 0:00:36]} 32. Rxg7+ {[%clk 0:00:34]}  Kxg7 {[%clk 0:00:36]} 33. Bxc5 {[%clk 0:00:34]}  Qxc5+ {[%clk 0:00:36]} 34. Kg2 {[%clk 0:00:31]}  Qd5+ {[%clk 0:00:36]} 35. Kh3 {[%clk 0:00:31]}  h5 {[%clk 0:00:28]} 36. Qxc4 {[%clk 0:00:16]}  Qxe5 {[%clk 0:00:28]} 37. Qc7+ {[%clk 0:00:16]}  Kh6 {[%clk 0:00:23]} 38. Qxd8 {[%clk 0:00:16]}  Qf5+ {[%clk 0:00:23]} 39. Kg2 {[%clk 0:00:16]}  Qe4+ {[%clk 0:00:24]} 40. Kf2 {[%clk 0:00:17]}  Qd4+ {[%clk 0:00:21]} 41. Ke2 {[%clk 0:00:17]}  Qe4+ {[%clk 0:00:21]} 42. Kd2 {[%clk 0:00:17]}  Qd4+ {[%clk 0:00:21]} 43. Kc2 {[%clk 0:00:18]}  Qe4+ {[%clk 0:00:19]} 44. Kb3 {[%clk 0:00:18]}  Qd5+ {[%clk 0:00:17]} 45. Rc4 {[%clk 0:00:18]}  Qd3+ {[%clk 0:00:17]} 46. Kb4 {[%clk 0:00:18]}  Qd2+ {[%clk 0:00:15]} 47. Kc5 {[%clk 0:00:18]}  Qe3+ {[%clk 0:00:14]} 48. Kc6 {[%clk 0:00:18]}  Qf3+ {[%clk 0:00:14]} 49. Kc7 {[%clk 0:00:18]}  Qd5 {[%clk 0:00:12]} 50. Qh8+ {[%clk 0:00:18]}  Kg5 {[%clk 0:00:12]} 51. h4+ {[%clk 0:00:18]}  Kf5 {[%clk 0:00:12]} 52. Rf4# {[%clk 0:00:19]} 1-0


[Site "https://www.chess.com"]